[Event "39th Muensterland Open 2022"]
[Site "Muenster"]
[Date "2022.10.04"]
[Round "5.7"]
[White "Stillger, Bernhard"]
[Black "Mueller, Martin"]
[Result "1/2-1/2"]
[ECO "A80"]
[WhiteElo "2279"]
[BlackElo "2130"]
[Annotator "TA"]
[PlyCount "152"]
[EventDate "2022.10.01"]
[EventType "swiss"]
[EventCountry "GER"]
[SourceTitle "playchess.com"]
[Source "ChessBase"]
[SourceQuality "1"]
[TimeControl "40/5400+30:1800+30"]

{[%evp 10,152,21,27,25,26,34,40,35,42,49,37,43,44,85,56,58,54,72,66,66,76,72,31,66,66,65,25,19,5,5,7,3,3,35,35,29,31,53,63,58,13,18,17,47,47,57,51,51,34,49,39,39,39,39,21,31,34,41,41,60,47,75,75,97,97,96,47,51,0,2,0,0,0,9,6,27,23,25,24,38,25,31,13,26,8,22,15,15,0,9,10,5,0,11,0,11,0,8,0,4,12,37,37,37,37,50,37,50,37,50,50,50,50,50,50,50,50,50,50,50,0,37,37,37,37,37,37,37,37,37,37,32,0,0,0,24,24,24,24,24,24,24,24,24]} 1. d4 {[%emt 0:00:03]} f5 {[%emt 0:00:13]} 2. Nc3 {[%emt 0:00:07]} Nf6 {[%emt 0:00:18]} 3. Bg5 {[%emt 0:00:07]} d5 {[%emt 0:00:41]} 4. e3 {[%emt 0:00:15]} e6 {[%emt 0:00:35]} 5. Nf3 {[%emt 0:00:22]} Be7 {[%emt 0:00:49]} 6. Bd3 {[%emt 0:01:18]} c5 {[%emt 0:00:48] A80: Dutch Defence: Unusual White second moves.} 7. dxc5 {[%emt 0:01:26]} Bxc5 {[%emt 0:00:25]} 8. O-O {[%emt 0:03:25]} O-O {[%emt 0:01:20] White is slightly better.} 9. Na4 {[%emt 0:03:35]} Be7 {[%emt 0:06:45]} 10. c4 {[%emt 0:00:46]} Nc6 {[%emt 0:04:39]} 11. Rc1 {[%emt 0:10:32] [#]} Bd7 $146 {[%emt 0:06:09]} ({Predecessor:} 11... Ne4 12. Bxe7 Nxe7 13. cxd5 Nxd5 14. Bxe4 fxe4 15. Nd2 b6 16. Nxe4 Ba6 17. Re1 Qh4 {1-0 (65) Pecotic,K (2034)-Parrilla,A (2003) IECG email 2005}) 12. Bxf6 {[%emt 0:10:22]} Rxf6 {[%emt 0:05:37]} 13. cxd5 {[%emt 0:00:40]} Nb4 {[%emt 0:07:31] [#] Strongly threatening ...Bxa4.} 14. Nc3 {[%emt 0:08:29]} Nxd5 {[%emt 0:02:40]} 15. Nxd5 {[%emt 0:02:16]} exd5 {[%emt 0:00:06]} 16. Qb3 {[%emt 0:01:39]} Bc6 {[%emt 0:19:51]} 17. Rfd1 {[%emt 0:03:11] White has more active pieces.} Qb6 {[%emt 0:01:59]} 18. Nd4 {[%emt 0:07:07]} f4 {[%emt 0:05:29]} 19. Nxc6 {[%emt 0:26:25]} bxc6 {[%emt 0:00:46]} 20. e4 {[%emt 0:01:16]} Qxb3 {[%emt 0:04:26]} 21. axb3 {[%emt 0:00:02]} Rd8 {[%emt 0:11:40]} 22. exd5 {[%emt 0:02:56]} cxd5 {[%emt 0:00:05]} 23. Rc7 {[%emt 0:01:35][%csl LRa7,LRe7]} Re6 {[%emt 0:00:27]} 24. Rxa7 {[%emt 0:01:40]} Bf6 {[%emt 0:00:16]} 25. Ra6 {[%emt 0:06:11] Against Rb6} Rxa6 {[%emt 0:03:45]} 26. Bxa6 $11 {[%emt 0:00:07][%mdl 4096] Endgame KRB-KRB} Kf8 {[%emt 0:02:15]} 27. Bb7 {[%emt 0:01:16]} d4 {[%emt 0:00:32]} 28. Rd3 {[%emt 0:01:15]} Rd7 {[%emt 0:00:53]} 29. Bf3 {[%emt 0:02:27]} Ke7 {[%emt 0:01:22]} 30. g3 {[%emt 0:01:05]} fxg3 {[%emt 0:00:45]} 31. hxg3 {[%emt 0:00:02]} Rc7 {[%emt 0:00:44]} 32. Be4 {[%emt 0:00:39]} Rc1+ {[%emt 0:01:03]} 33. Kg2 {[%emt 0:00:04]} h6 {[%emt 0:00:31]} 34. b4 {[%emt 0:00:23]} Kd6 {[%emt 0:03:52]} 35. Ra3 {[%emt 0:00:31]} Rc4 {[%emt 0:01:52]} 36. Rb3 {[%emt 0:01:02]} Kc7 {[%emt 0:00:31]} 37. Bd3 {[%emt 0:01:40]} Rc1 {[%emt 0:00:45]} 38. Ra3 {[%emt 0:00:33]} ({Better is} 38. b5 $16) 38... Rd1 $1 $14 {[%emt 0:00:20]} 39. Kf3 {[%emt 0:00:15]} (39. b5 $14) 39... Rd2 $11 {[%emt 0:00:19]} 40. Rb3 {[%emt 0:00:33]} Kb6 {[%emt 0:01:41]} 41. b5 {[%emt 0:31:15]} Be7 {[%emt 0:30:35]} 42. Kg2 {[%emt 0:00:00]} Bc5 {[%emt 0:00:00]} 43. Kf1 {[%emt 0:00:00] [#] Threatens to win with Ke1.} Rd1+ {[%emt 0:00:00]} 44. Ke2 {[%emt 0:00:00]} Ra1 {[%emt 0:00:00]} 45. Be4 {[%emt 0:00:00]} Ra7 {[%emt 0:00:00]} 46. Bc6 {[%emt 0:00:00]} Re7+ {[%emt 0:00:00]} 47. Kf1 {[%emt 0:00:00]} Rf7 {[%emt 0:00:00]} 48. Rd3 {[%emt 0:00:00]} Ka5 {[%emt 0:00:00]} 49. Bd5 {[%emt 0:00:00]} Rf5 {[%emt 0:00:00]} 50. Bc4 {[%emt 0:00:00]} Kb4 {[%emt 0:00:00]} 51. b3 {[%emt 0:00:00]} Rf8 {[%emt 0:00:00]} 52. Kg2 {[%emt 0:00:00]} Rf6 {[%emt 0:00:00]} 53. f4 {[%emt 0:00:00]} Rf8 {[%emt 0:00:00]} 54. Kf3 {[%emt 0:00:00]} Re8 {[%emt 0:00:00]} 55. Kg4 {[%emt 0:00:00]} Re3 {[%emt 0:00:00]} 56. Rxe3 {[%emt 0:00:00]} dxe3 $14 {[%emt 0:00:00] KB-KB} 57. Kf5 {[%emt 0:01:05]} Ka5 {[%emt 0:00:00]} 58. Ke5 {[%emt 0:02:20]} Kb6 {[%emt 0:00:00]} 59. g4 {[%emt 0:00:37]} Kc7 {[%emt 0:00:00]} 60. Kd5 {[%emt 0:01:11]} Kb6 {[%emt 0:00:35]} 61. Be2 {[%emt 0:00:40]} Ba3 {[%emt 0:01:03]} 62. Ke4 {[%emt 0:00:46]} Bc1 {[%emt 0:01:02]} 63. Ke5 {[%emt 0:02:15]} Bb2+ {[%emt 0:00:25]} 64. Ke6 {[%emt 0:00:08]} Bc3 {[%emt 0:00:20]} 65. f5 {[%emt 0:00:10]} (65. Kd5 $14) 65... Bf6 {[%emt 0:00:42]} 66. Kd5 {[%emt 0:01:04]} Bb2 {[%emt 0:03:45]} 67. Ke4 {[%emt 0:00:16]} Bc1 $1 {[%emt 0:00:07]} 68. Kf4 {[%emt 0:01:08]} Bd2 {[%emt 0:00:21]} 69. Ke5 {[%emt 0:00:39]} Bc1 {[%emt 0:00:17]} 70. Ke6 {[%emt 0:00:02] aiming for f6.} Bb2 {[%emt 0:00:08] Prevents f6.} 71. b4 {[%emt 0:00:13]} Bc3 {[%emt 0:00:12]} 72. Bf1 {[%emt 0:01:28]} Bb2 {[%emt 0:00:42]} 73. Kd5 {[%emt 0:00:17] White has an edge.} Bc3 {[%emt 0:00:38]} 74. Ke4 {[%emt 0:00:15]} Bd2 {[%emt 0:00:06]} 75. Be2 {[%emt 0:00:05]} Bc1 {[%emt 0:00:24]} 76. Kd4 {[%emt 0:00:42]} Bd2 {[%emt 0:00:07] Weighted Error Value: White=0.08 (flawless) /Black=0.08 (flawless)} 1/2-1/2

[Event "39th Muensterland Open 2022"]
[Site "Muenster"]
[Date "2022.10.04"]
[Round "5.8"]
[White "Ollenberger, Roland"]
[Black "Rott, Georg"]
[Result "0-1"]
[ECO "D32"]
[WhiteElo "2256"]
[BlackElo "2064"]
[Annotator "TA"]
[PlyCount "116"]
[EventDate "2022.10.01"]
[EventType "swiss"]
[EventCountry "GER"]
[SourceTitle "playchess.com"]
[Source "ChessBase"]
[SourceQuality "1"]
[TimeControl "40/5400+30:1800+30"]

{[%evp 19,116,37,31,31,65,67,81,74,116,60,99,90,113,113,110,110,112,108,97,108,107,94,86,87,116,114,122,122,120,123,168,133,128,102,102,107,107,107,106,85,85,78,104,-697,-712,-29981,-2047,-2303,-2188,-1378,-616,-611,-574,-776,-770,-812,-816,-783,-773,-757,-822,-767,-758,-839,-840,-801,-791,-854,-379,-833,-831,-636,-533,-868,-862,-862,-823,-958,-959,-911,-883,-5437,-1347,-1343,-1151,-12845,-12845,-12845,-12841,-12841,-12841,-12842,-12842,-12842,-12843,-12842,-12842,-12843,-12842]} 1. c4 {[%emt 0:00:03]} e6 {[%emt 0:00:09]} 2. Nc3 {[%emt 0:01:18]} d5 {[%emt 0:00:18]} 3. e3 {[%emt 0:01:25]} Nf6 {[%emt 0:01:11]} 4. Nf3 {[%emt 0:00:48]} c5 {[%emt 0:00:35]} 5. cxd5 {[%emt 0:05:44]} exd5 {[%emt 0:00:08]} 6. d4 {[%emt 0:00:28]} Nc6 {[%emt 0:02:39]} 7. Be2 {[%emt 0:02:01]} a6 {[%emt 0:02:18]} 8. O-O {[%emt 1:22:43]} Be7 {[%emt 0:02:49]} 9. b3 {[%emt 0:03:21]} O-O {[%emt 0:01:36]} 10. Bb2 {[%emt 0:01:01]} Be6 {[%emt 0:06:12]} 11. Rc1 {[%emt 0:05:02] D32: Tarrasch Defence: Sidelines and lines without g3.} Ne4 {[%emt 0:06:57]} 12. dxc5 {[%emt 0:12:18]} Nxc5 {[%emt 0:05:40]} 13. Nd4 {[%emt 1:00:55] White is better.} Rc8 {[%emt 0:03:41]} 14. Nxc6 {[%emt 0:04:01]} ({White should try} 14. Nxe6 $16 fxe6 15. Bg4) 14... Rxc6 {[%emt 0:00:18]} 15. Bf3 $1 {[%emt 0:00:38][%cal Rc3d5]} Bf6 {[%emt 0:04:00] [#]} 16. Ba3 $146 {[%emt 0:09:57][%cal Rc3d5]} ({Predecessor:} 16. Qd2 Qa5 17. Rfd1 Rd8 18. Ne4 Qxa2 19. Nxf6+ gxf6 20. Ra1 Qxb3 21. Bxf6 Re8 22. e4 Bf5 23. exf5 Rxf6 24. Qg5+ {1-0 (25) Bang,A (2210)-Honfi,G (2270) Balatonbereny 1987}) 16... Qa5 {[%emt 0:10:59][%csl LRa3,LRc3]} 17. Nxd5 {[%emt 0:14:58]} (17. Na4 Nxa4 18. bxa4 Rfc8 $15) 17... Bxd5 {[%emt 0:00:56]} (17... Qxa3 $2 18. Nxf6+ gxf6 19. Bxc6 $18) 18. Bxd5 {[%emt 0:29:43]} Rd8 {[%emt 0:00:11]} (18... Qxa3 $2 19. Bxc6 bxc6 20. Qd6 $18) 19. Bxc5 {[%emt 0:00:57]} ({And not} 19. Qh5 Rxd5 20. Qxd5 Qxa3 $15) 19... Rxc5 {[%emt 0:00:38]} 20. Rxc5 {[%emt 0:00:37]} Qxc5 {[%emt 0:00:03]} 21. e4 {[%emt 0:00:07]} b6 {[%emt 0:49:42]} 22. Qf3 {[%emt 0:01:18]} a5 {[%emt 0:49:20]} 23. Rd1 {[%emt 0:00:07][%cal Oe4e5,Bf1d1,Bd1c1,Bc1c6][%mdl 32] Threatens to win with e5!} Rd7 {[%emt 0:01:46]} 24. g3 {[%emt 0:01:19]} Bd4 {[%emt 0:05:01]} 25. Kg2 {[%emt 0:02:01]} g6 {[%emt 0:00:17] Inhibits Qf5.} 26. h4 {[%emt 0:27:03]} h5 {[%emt 0:06:01]} 27. Qf4 {[%emt 0:03:51]} Kg7 {[%emt 0:00:18]} 28. Rc1 {[%emt 0:00:25]} Qe7 {[%emt 0:06:19]} 29. Rc6 {[%emt 0:01:24]} Bc5 {[%emt 0:00:39]} 30. Rc8 {[%emt 0:03:27][%cal Od5f7]} Rd6 {[%emt 0:00:54] ...Rf6 is the strong threat.} 31. f3 $2 {[%emt 0:03:57][%mdl 8192] [#]} (31. Qg5 $16 Rd7 32. f4 (32. Qc1 Qf6 $16) (32. Qf4 Bd6 $16)) 31... Rxd5 $1 $19 {[%emt 0:01:16][%mdl 512]} 32. g4 {[%emt 0:09:04] [#]} (32. Rc7 Rd7) 32... Rd1 {[%emt 0:12:00]} (32... Qxh4 $142 $1 33. Rxc5 Rxc5 34. Qd2 hxg4 35. f4 Qh3+ 36. Kf2 g3+ 37. Ke2 Qh2+ 38. Kd1 Qh1+ 39. Ke2 Qxe4+ 40. Qe3 Rc2+ 41. Kd1 Qxe3 42. Kxc2 g2 43. Kb2 g1=R 44. Kc2 Rg2+ 45. Kd1 Qg1#) 33. Rc7 {[%emt 0:04:14]} Rg1+ {[%emt 0:06:49]} 34. Kh3 {[%emt 0:03:51]} Qf6 {[%emt 0:06:01]} (34... Qe6 $142 35. e5 hxg4+ 36. fxg4 Qd5 37. Qf6+ Kg8 38. Rc8+ Bf8 39. Rxf8+ Kxf8 40. Qd6+ Qxd6 41. exd6 Rh1+ 42. Kg3 Ke8) 35. Qxf6+ {[%emt 0:00:53]} Kxf6 {[%emt 0:00:01][%mdl 4096] Endgame KRB-KR} 36. g5+ {[%emt 0:01:18]} Ke6 {[%emt 0:00:13]} 37. Rc6+ {[%emt 0:01:40]} Kd7 {[%emt 0:00:30]} 38. Rf6 {[%emt 0:00:10]} Ke7 {[%emt 0:00:33]} 39. f4 {[%emt 0:01:06]} Bd6 {[%emt 0:02:19]} 40. e5 {[%emt 0:00:27]} Bc5 {[%emt 0:00:52]} 41. e6 {[%emt 0:03:09]} fxe6 {[%emt 0:00:25]} 42. Rxg6 {[%emt 0:00:05]} Bf2 {[%emt 0:01:15]} 43. Rh6 {[%emt 0:01:23]} Rg3+ {[%emt 0:00:19]} 44. Kh2 {[%emt 0:00:07]} Rg4 {[%emt 0:34:40][%csl LRf4,LRh4] Black is clearly winning.} 45. Rh7+ {[%emt 0:01:08]} Kf8 {[%emt 0:00:27]} 46. Rh6 {[%emt 0:04:41]} Rxh4+ {[%emt 0:00:51]} 47. Kg2 {[%emt 0:00:06]} Rxf4 {[%emt 0:00:17]} 48. Rxe6 {[%emt 0:00:15]} Bc5 {[%emt 0:00:43]} 49. Kh3 {[%emt 0:00:28]} Rg4 {[%emt 0:00:55]} 50. a3 {[%emt 0:02:08]} Kf7 {[%emt 0:01:41]} 51. Rh6 {[%emt 0:01:04]} Rxg5 {[%emt 0:00:29]} 52. b4 {[%emt 0:00:12]} axb4 {[%emt 0:00:28]} 53. axb4 {[%emt 0:00:03]} Bf2 {[%emt 0:00:12]} 54. Rh7+ {[%emt 0:04:13]} Kg6 {[%emt 0:00:34]} 55. Re7 {[%emt 0:00:34]} Rb5 {[%emt 0:06:28]} 56. Re4 {[%emt 0:01:10]} Kf5 {[%emt 0:00:15]} 57. Re8 {[%emt 0:00:54]} Bd4 {[%emt 0:00:40]} 58. Kh4 {[%emt 0:01:08]} Bf6+ {[%emt 0:00:27] Quite a comeback for Black.  Weighted Error Value: White=0.79/Black=0.49} 0-1

[Event "39th Muensterland Open 2022"]
[Site "Muenster"]
[Date "2022.10.04"]
[Round "5.10"]
[White "Schroeder, Lennart"]
[Black "Schmitzer, Klaus"]
[Result "0-1"]
[ECO "A13"]
[WhiteElo "2031"]
[BlackElo "2250"]
[Annotator "TA"]
[PlyCount "70"]
[EventDate "2022.10.01"]
[EventType "swiss"]
[EventCountry "GER"]
[SourceTitle "playchess.com"]
[Source "ChessBase"]
[SourceQuality "1"]
[TimeControl "40/5400+30:1800+30"]

{[%evp 12,70,16,15,21,23,43,29,34,16,10,14,15,4,15,0,28,7,27,6,18,-10,6,-2,-3,-4,0,-49,-26,-93,-85,-103,-104,-123,-76,-79,-10,-23,-2,-35,0,-16,-8,-16,-11,-67,-76,-85,-87,-77,-35,-229,-229,-227,-213,-391,-400,-400,-384,-372,-382]} 1. Nf3 {[%emt 0:00:14]} Nf6 {[%emt 0:02:46]} 2. c4 {[%emt 0:00:23]} e6 {[%emt 0:00:29]} 3. g3 {[%emt 0:00:19]} b6 {[%emt 0:01:39]} 4. Bg2 {[%emt 0:00:18]} Bb7 {[%emt 0:00:11]} 5. O-O {[%emt 0:00:20]} Be7 {[%emt 0:00:50]} 6. b3 {[%emt 0:00:32]} O-O {[%emt 0:01:29]} 7. Bb2 {[%emt 0:00:24]} a5 {[%emt 0:01:29] A13: English Opening: 1...e6.} 8. Nc3 {[%emt 0:02:20]} d6 {[%emt 0:03:36][%cal Bd7d6,Bd6d5][%mdl 32]} 9. d4 {[%emt 0:01:49]} Ne4 {[%emt 0:04:31] White has an edge.} 10. Nd2 {[%emt 0:05:23]} Nxc3 {[%emt 0:01:24]} 11. Bxc3 {[%emt 0:02:30]} Bxg2 {[%emt 0:00:30]} 12. Kxg2 {[%emt 0:00:06] [#]} d5 $146 {[%emt 0:01:50]} ({Predecessor:} 12... Nd7 13. e4 e5 14. d5 Bg5 15. Nf3 Bh6 16. Nh4 g6 17. Qc2 Nc5 18. a3 a4 {0-1 (71) Arjol Lopez,D (2137)-Camacho Collados,M (2393) Linares 2018}) 13. e3 {[%emt 0:04:32]} Nc6 {[%emt 0:12:55]} 14. a3 {[%emt 0:03:52]} Qd7 {[%emt 0:10:46][%cal Oa5a4]} 15. Qc2 {[%emt 0:03:18]} Rfc8 {[%emt 0:09:40][%cal Oa5a4]} 16. Rfc1 {[%emt 0:08:26]} Bf8 {[%emt 0:01:02]} 17. Bb2 {[%emt 0:03:20]} Nd8 {[%emt 0:04:14]} 18. Nf3 {[%emt 0:02:27]} f6 {[%emt 0:01:08]} 19. Ne1 {[%emt 0:11:07]} (19. a4 $11 {might be stronger.}) 19... c5 {[%emt 0:03:30]} (19... a4 {is interesting.} 20. Nf3 c5 21. dxc5 bxc5 22. bxa4 dxc4 23. Nd2 Rxa4 24. Nxc4 Nf7) 20. Qe2 {[%emt 0:07:03]} (20. a4 $11) 20... a4 $17 {[%emt 0:02:47]} 21. dxc5 {[%emt 0:03:08]} bxc5 {[%emt 0:01:39]} 22. bxa4 {[%emt 0:01:43]} Rxa4 {[%emt 0:01:25]} ({Better is} 22... d4 23. f4 Rxa4) 23. Rd1 {[%emt 0:02:39]} Nc6 {[%emt 0:05:53]} (23... Rb8 $17 {aiming for ...d4.} 24. Qc2 Qc6 25. cxd5 exd5) 24. cxd5 $11 {[%emt 0:01:46]} exd5 {[%emt 0:00:06]} 25. Rac1 {[%emt 0:01:57]} Na5 {[%emt 0:07:00]} 26. Rc2 {[%emt 0:04:24]} Qb7 {[%emt 0:06:51]} 27. Qf3 {[%emt 0:02:36]} Rd8 {[%emt 0:00:22]} 28. Bc1 {[%emt 0:01:57]} (28. Nd3 $11) 28... Nc4 $15 {[%emt 0:01:48]} 29. Nd3 {[%emt 0:03:22]} Qb3 {[%emt 0:01:39]} 30. Qe2 {[%emt 0:02:25]} d4 {[%emt 0:04:07][%cal Bd5d4,Bd4d3][%mdl 32] Black has more active pieces.} (30... Re8 $5 {[%cal Rd5d4]}) 31. Nb2 $2 {[%emt 0:05:17] [#] White does not recover from this.} (31. exd4 $15 cxd4 32. Kg1) 31... Nxb2 $1 $19 {[%emt 0:03:01]} ({Stronger than} 31... Nxa3 32. Nxa4 Nxc2 33. Nb2) 32. Rxb2 {[%emt 0:00:29]} d3 {[%emt 0:01:26]} ({Resist} 32... Qxa3 {[#]} 33. Rb8 $3 {[%mdl 512]} Rxb8 34. Bxa3 Rxa3 35. exd4 cxd4 36. Rxd4 $18) 33. Rxb3 $2 {[%emt 0:02:10]} (33. Qf3 Qe6 34. Qb7) 33... dxe2 {[%emt 0:00:02] Black is winning.} 34. Re1 {[%emt 0:00:08]} Rd1 {[%emt 0:00:26]} 35. Rxe2 {[%emt 0:00:51]} Rxc1 {[%emt 0:05:29] Weighted Error Value: White=0.33/Black=0.13 (very precise)} 0-1

[Event "39th Muensterland Open 2022"]
[Site "Muenster"]
[Date "2022.10.05"]
[Round "6.1"]
[White "Pfreundt, Jakob"]
[Black "Bungarten, Jona"]
[Result "1-0"]
[ECO "D00"]
[WhiteElo "2394"]
[BlackElo "2010"]
[Annotator "TA"]
[PlyCount "63"]
[EventDate "2022.10.01"]
[EventType "swiss"]
[EventCountry "GER"]
[SourceTitle "playchess.com"]
[Source "ChessBase"]
[SourceQuality "1"]
[TimeControl "40/5400+30:1800+30"]

{[%evp 9,63,0,4,-11,19,-9,14,20,8,0,13,-39,-2,4,4,0,0,0,25,20,27,21,32,22,30,21,29,20,12,0,8,0,49,20,27,21,103,109,104,69,49,49,49,56,50,57,238,203,437,429,422,422,422,411,988,966]} 1. d4 {[%emt 0:00:06]} d5 {[%emt 0:00:21]} 2. Nc3 {[%emt 0:00:26]} Nf6 {[%emt 0:00:28]} 3. Bf4 {[%emt 0:00:09]} Bf5 {[%emt 0:02:04]} 4. e3 {[%emt 0:00:20]} e6 {[%emt 0:02:29]} 5. Bd3 {[%emt 0:00:10]} Bg6 {[%emt 0:01:43]} 6. h4 {[%emt 0:00:15] [#] D00: 1 d4 d5: Unusual lines.} c5 $146 {[%emt 0:01:30]} ({Predecessor:} 6... Bd6 7. h5 Bxd3 8. Qxd3 Bxf4 9. exf4 O-O 10. Nf3 c5 11. dxc5 Na6 12. O-O-O Rc8 13. h6 {1-0 (30) Erigaisi,A (2681)-Sjugirov,S (2696) Chess.com INT 2022}) 7. Bb5+ {[%emt 0:11:42]} Nc6 {[%emt 0:03:09]} 8. h5 {[%emt 0:00:10] The position is equal.} Bf5 {[%emt 0:00:18]} 9. h6 {[%emt 0:02:01]} gxh6 {[%emt 0:04:57]} 10. Bxh6 {[%emt 0:01:28]} (10. Nf3 $11) 10... Bxh6 {[%emt 0:00:37]} (10... Rg8 $5 {[%cal Rf8h6]} 11. Kf1 Bxh6 12. Rxh6 Ng4 $15) 11. Rxh6 {[%emt 0:00:10]} Rg8 {[%emt 0:01:13]} 12. g3 {[%emt 0:19:22]} Ng4 {[%emt 0:05:47]} 13. Rh1 {[%emt 0:03:14]} Qd6 {[%emt 0:07:52][%cal Og4f2]} 14. Qd2 {[%emt 0:07:17]} O-O-O {[%emt 0:00:53]} 15. O-O-O {[%emt 0:04:05]} c4 {[%emt 0:13:32]} 16. Bxc6 {[%emt 0:01:53]} Qxc6 {[%emt 0:01:47]} 17. f3 {[%emt 0:00:37]} Nf6 {[%emt 0:00:30]} 18. g4 {[%emt 0:00:09]} Bg6 {[%emt 0:00:04]} 19. Nh3 {[%emt 0:05:58][%cal Bg1h3,Bh3f4,Bf4d5][%mdl 32]} b5 {[%emt 0:02:32]} 20. a3 {[%emt 0:04:26]} Rge8 {[%emt 0:03:02]} (20... a5 $11) 21. Na2 {[%emt 0:03:05]} Qb6 {[%emt 0:01:28]} 22. Nf4 {[%emt 0:01:19]} e5 {[%emt 0:01:20]} (22... Re7 $11 {remains equal.}) 23. dxe5 $16 {[%emt 0:01:16]} Rxe5 {[%emt 0:00:13]} 24. Qd4 {[%emt 0:14:05]} Rxe3 {[%emt 0:02:51]} 25. Qxb6 {[%emt 0:00:24] Really sharp!} axb6 {[%emt 0:00:06]} 26. g5 $1 {[%emt 0:00:05]} Ne8 {[%emt 0:06:33]} 27. Nxd5 {[%emt 0:01:03]} Rxf3 {[%emt 0:00:12] [#] This move loses the game for Black.} ({Black should play} 27... Re2 $1 $14 28. Nxb6+ Kc7) 28. Rhe1 $1 $40 {[%emt 0:01:09][%mdl 128] White attacks with force.} ({Worse is} 28. Nxb6+ Kc7 29. Nd5+ Kb8 $14) 28... Nd6 $2 {[%emt 0:06:00]} (28... Rxd5 29. Rxd5 Nc7) 29. Re7 {[%emt 0:03:32]} Be4 {[%emt 0:04:57] White must now prevent ...Bxd5.} 30. Nxb6+ {[%emt 0:01:06] Pair of Knights!} Kb8 {[%emt 0:00:01]} 31. Nd7+ {[%emt 0:02:39]} Kc8 {[%emt 0:00:48]} (31... Rxd7 $142 32. Rxd7 Nc8) 32. Rxd6 {[%emt 0:02:01] Weighted Error Value: White=0.09 (flawless) /Black=0.37} 1-0

[Event "39th Muensterland Open 2022"]
[Site "Muenster"]
[Date "2022.10.05"]
[Round "6.2"]
[White "Koellner, Ruben Gideon"]
[Black "Junk, Phillip"]
[Result "1-0"]
[ECO "D00"]
[WhiteElo "2403"]
[BlackElo "2085"]
[Annotator "TA"]
[PlyCount "69"]
[EventDate "2022.10.01"]
[EventType "swiss"]
[EventCountry "GER"]
[SourceTitle "playchess.com"]
[Source "ChessBase"]
[SourceQuality "1"]
[TimeControl "40/5400+30:1800+30"]

{[%evp 9,69,8,8,-8,28,27,35,1,27,-16,-13,-17,-3,0,14,15,21,19,22,19,30,15,20,8,10,0,10,13,24,32,29,22,19,24,78,69,152,149,161,145,140,155,133,118,239,241,245,243,234,230,511,516,481,506,582,576,537,554,2401,1019,2239,1938]} 1. d4 {[%emt 0:00:03]} d5 {[%emt 0:00:08]} 2. Bg5 {[%emt 0:00:04]} Nf6 {[%emt 0:01:05]} 3. e3 {[%emt 0:00:07]} c6 {[%emt 0:02:33]} 4. Bd3 {[%emt 0:01:33]} Bg4 {[%emt 0:05:40]} 5. Nf3 {[%emt 0:02:48]} Nbd7 {[%emt 0:00:23][%cal Oe7e5]} 6. h3 {[%emt 0:04:11] D00: 1 d4 d5: Unusual lines.} Bh5 {[%emt 0:04:48]} (6... Bxf3 $5 7. Qxf3 Qb6 $11) 7. Nbd2 {[%emt 0:01:03]} e6 {[%emt 0:06:21]} 8. Bf4 {[%emt 0:04:59] White is slightly better.} Be7 {[%emt 0:02:08] [#]} 9. c4 $146 {[%emt 0:01:01]} ({Predecessor:} 9. O-O O-O 10. c3 Bg6 11. Bxg6 hxg6 12. Qe2 Qb6 13. Rac1 c5 14. Ne5 Rac8 15. a3 {1-0 (63) Boskovic,D (2438)-Nestorovic,L (2350) Palic 2014}) 9... c5 {[%emt 0:01:50]} 10. O-O {[%emt 0:14:56]} O-O {[%emt 0:02:17]} 11. b3 {[%emt 0:02:35]} Rc8 {[%emt 0:02:06]} 12. Qb1 {[%emt 0:07:35]} Bg6 {[%emt 0:12:44]} 13. Bxg6 {[%emt 0:00:09]} hxg6 {[%emt 0:00:10]} 14. Rd1 {[%emt 0:00:59]} Qb6 {[%emt 0:01:31]} 15. a3 {[%emt 0:09:36][%cal Ob3b4]} a5 {[%emt 0:06:11] Prevents b4.} 16. Rc1 {[%emt 0:01:27]} Rfd8 {[%emt 0:03:43]} 17. Ra2 {[%emt 0:03:30]} Qa6 {[%emt 0:02:38]} 18. Bg5 {[%emt 0:04:28]} Kf8 {[%emt 0:01:10]} 19. dxc5 {[%emt 0:09:37]} dxc4 {[%emt 0:02:22]} 20. b4 {[%emt 0:00:51]} b5 {[%emt 0:01:49]} 21. Nd4 {[%emt 0:06:42] a4 is the strong threat.} a4 {[%emt 0:06:16] [#]} (21... Ra8 $11 {remains equal.}) 22. N2f3 $1 $16 {[%emt 0:04:31] White has more active pieces.} Nd5 {[%emt 0:04:05]} ({Black should play} 22... Nb8 $14) 23. Bxe7+ {[%emt 0:00:06]} Nxe7 {[%emt 0:00:15]} 24. Rd2 {[%emt 0:01:00]} Nf6 {[%emt 0:03:20]} 25. Rcd1 {[%emt 0:01:58][%cal Od4e6] Strongly threatening Nxe6+!} Ke8 {[%emt 0:01:47]} 26. Qc2 {[%emt 0:03:47]} Nf5 {[%emt 0:04:59] [#] Loses the game.} (26... Qb7 $16 {keeps fighting.}) 27. Ne2 $1 $18 {[%emt 0:02:52] aiming for Nc3.} Rxd2 {[%emt 0:05:32]} 28. Qxd2 {[%emt 0:00:32] And now Nc3 would win.} ({Don't take} 28. Rxd2 $6 Ne7 29. e4 Rd8 30. Rxd8+ Kxd8) ({Less strong is} 28. Nxd2 Rd8 $14) 28... Qb7 {[%emt 0:02:27]} 29. Nc3 {[%emt 0:00:16][%cal Oe3e4] Black must now prevent e4!} Rb8 $2 {[%emt 0:01:17]} (29... Nd5 {is a better defense.} 30. Nxd5 exd5 31. Qxd5 Qxd5 32. Rxd5 Ne7) 30. e4 {[%emt 0:03:45] White is clearly winning.} Ne7 {[%emt 0:03:14]} 31. Nd4 {[%emt 0:00:50][%cal Bf3d4,Bd4b5,Bb5d6][%mdl 32]} Nxe4 {[%emt 0:01:06]} 32. Nxe4 {[%emt 0:00:16]} Qxe4 {[%emt 0:00:03] [#]} 33. Nxb5 $1 {[%emt 0:00:16][%mdl 512]} Nf5 {[%emt 0:03:50]} (33... Qd3 34. Qc1) 34. Qd7+ {[%emt 0:00:27]} Kf8 {[%emt 0:00:04]} 35. Nd6 {[%emt 0:00:06] Weighted Error Value: White=0.05 (flawless) /Black=0.30} 1-0